fUSD/lending_fUSD_20240730
["ID","MTS","AMOUNT","RATE_DAILY","PERIOD"]
[333697594,1722366972461,150.0,0.00031798,30]
[333697595,1722367331283,426.89,8.219e-05,2]
[333697596,1722367345877,160.0,0.00031795,30]
[333697597,1722367519578,555.64038591,9e-05,2]
[333697598,1722367519603,6235.65187985,9e-05,2]
[333697599,1722367720897,517.40030527,0.00031795,120]
[333697630,1722367831538,-250.0,9.491e-05,2]
[333697631,1722367831548,-240.0,9.654e-05,2]
[333697632,1722367831558,-169.47,0.0001,2]
[333697633,1722367831685,-4278.97888679,0.0001,2]
[333697634,1722367831695,-199.9,0.00010312,2]
[333697635,1722367831704,-199.9,0.00010315,2]
[333697636,1722367831713,-199.9,0.00010318,2]
[333697637,1722367831723,-199.9,0.00010321,2]
[333697638,1722367831732,-199.9,0.00010323,2]
[333697639,1722367831742,-199.9,0.00010326,2]
[333697640,1722367831751,-199.9,0.00010329,2]
[333697641,1722367831760,-199.9,0.00010331,2]
[333697642,1722367831769,-199.9,0.00010334,2]
[333697643,1722367831779,-882.68,0.00010334,2]
[333697644,1722367831789,-50.48969408,0.00010336,2]
[333697645,1722367831801,-249.51030592,0.00010336,2]
[333697646,1722367831810,-199.9,0.00010337,2]
[333697647,1722367831820,-499.99,0.00010337,2]
[333697648,1722367831829,-199.9,0.0001034,2]
[333697649,1722367831839,-199.9,0.00010342,2]
[333697650,1722367831849,-199.9,0.00010345,2]
[333697651,1722367831860,-199.9,0.00010348,2]
[333697652,1722367831869,-199.9,0.0001035,2]
[333697653,1722367831878,-199.9,0.00010353,2]
[333697654,1722367831888,-199.9,0.00010356,2]
[333697655,1722367831897,-199.9,0.00010359,2]
[333697656,1722367831906,-199.9,0.00010361,2]
[333697657,1722367831916,-199.9,0.00010364,2]
[333697658,1722367831925,-760.0,0.00010413,2]
[333697659,1722367831936,-426.89,0.00010458,2]
[333697660,1722367831945,-187.233964,0.0001078,2]
[333697661,1722367831954,-518.0,0.00010781,2]
[333697662,1722367831967,-240.0,0.00010861,2]
[333697663,1722367831977,-1776.21973442,0.00010879,2]
[333697664,1722367831986,-8695.06570455,0.0001088,2]
[333697665,1722367831997,-364.67036088,0.0001088,2]
[333697666,1722367833976,-2127.91,0.0001088,2]
[333697667,1722367833988,-1039.39805608,0.0001088,2]
[333697704,1722367837540,-1389.39140878,0.0001088,2]
[333697706,1722367837551,-2133.629464,0.0001088,2]
[333697707,1722367837563,-2632.68,0.0001088,2]
[333697709,1722367837574,-4519.65421666,0.0001088,2]
[333697711,1722367837585,-1004.0000963,0.0001088,2]
[333697713,1722367837596,-1001.89104231,0.0001088,2]
[333697714,1722367837685,-655.4,0.0001088,2]
[333697715,1722367837846,-1895.74927935,0.0001088,2]
[333697716,1722367837857,-514.74031448,0.0001088,2]
[333697747,1722367839793,-650.45,0.0001088,2]
[333697748,1722367840161,-5553.17134023,0.0001088,2]
[333697749,1722367840211,-15820.11966639,0.0001088,2]
[333697767,1722367842574,-417.70685049,0.0001088,2]
[333697768,1722367842585,-7947.95973832,0.0001088,2]
[333697775,1722367842727,-35404.0008943,0.0001088,2]
[333697776,1722367842738,-33848.5,0.0001088,2]
[333697777,1722367842750,-1014.85999952,0.0001088,2]
[333697778,1722367842770,-10001.989951,0.0001088,2]
[333697791,1722367845629,-118517.65431678,0.0001088,2]
[333697792,1722367845638,-3000.0,0.0001089,2]
[333697793,1722367845648,-713.8839,0.000109,2]
[333697794,1722367845657,-349.9736,0.000109,2]
[333697795,1722367845667,-1000.0,0.000109,2]
[333697796,1722367845676,-500.0,0.00010912,2]
[333697797,1722367845686,-200.0,0.00010959,2]
[333697798,1722367845695,-250.0,0.00010959,2]
[333697799,1722367845705,-155.0,0.0001099,2]
[333697800,1722367845714,-303.63,0.0001099,2]
[333697801,1722367845723,-879.068,0.00010999,2]
[333697802,1722367845733,-1332.455,0.00010999,2]
[333697803,1722367845743,-1249.0,0.00010999,2]
[333697804,1722367845752,-1148.455,0.00010999,2]
[333697805,1722367845762,-832.0,0.00010999,2]
[333697806,1722367845771,-5833.0,0.00010999,2]
[333697807,1722367845780,-1202.0,0.00010999,2]
[333697808,1722367845790,-18100.017,0.00010999,2]
[333697809,1722367845799,-396.0,0.00010999,2]
[333697810,1722367845808,-810.0,0.00010999,2]
[333697811,1722367845818,-2118.36543561,0.00010999,2]
[333697812,1722367845828,-210.39281179,0.00010999,2]
[333697813,1722367845837,-5521.42600838,0.00010999,2]
[333697814,1722367845847,-93704.25513599,0.00011,2]
[333697815,1722367845856,-419243.24689826,0.00011,2]
[333697816,1722367845878,-250.10479714,0.00011,2]
[333697817,1722367845889,-973.30801758,0.00011,2]
[333697818,1722367845899,-2124.78082076,0.00011,2]
[333697820,1722367845925,-12780.09052708,0.00011,2]
[333697821,1722367845936,-815.6971792,0.00011,2]
[333697822,1722367845948,-1523.78274965,0.00011,2]
[333697823,1722367845959,-292.52461614,0.00011,2]
[333697824,1722367845970,-3153.14995,0.00011,2]
[333697825,1722367845989,-837.7,0.00011,2]
[333697826,1722368136962,158.28,0.0001337,30]
[333697827,1722368247728,160.0,0.00031795,30]
[333697829,1722368362910,415.91,8.438e-05,2]
[333697830,1722368419832,261.34078617,8.438e-05,2]
[333697831,1722368429885,1632.78059601,8.438e-05,2]
[333697832,1722368432360,1454.31673797,8.438e-05,2]
[333697833,1722368432383,178.46385804,8.438e-05,2]
[333697834,1722368616861,1632.78059601,8.438e-05,2]
[333697835,1722368664043,158.28,0.0001337,30]
[333697846,1722368938815,395.11,8.323e-05,2]
[333697847,1722368940240,329.97953404,0.00031795,120]
[333697882,1722369031590,-1250.0,0.0001,2]
[333697886,1722369031599,-300.0,0.00010227,2]
[333697890,1722369031608,-947.63704702,0.00010228,2]
[333697893,1722369031618,-492.8296563,0.00010228,2]
[333697895,1722369031627,-1256.19339315,0.00010228,2]
[333697897,1722369031635,-1311.00864872,0.00010228,2]
[333697899,1722369031644,-1000.0,0.00010248,2]
[333697901,1722369031654,-47.64393381,0.00010298,2]
[333697903,1722369031669,-121.11606619,0.00010298,2]
[333697906,1722369031678,-150.0,0.00010356,2]
[333697909,1722369031688,-260.59,0.00010388,2]
[333697911,1722369031697,-6.43110159,0.00010586,2]
[333697913,1722369031709,-388.67889841,0.00010586,2]
[333697915,1722369031718,-2809.939,0.0001078,2]
[333697917,1722369031727,-3863.72795769,0.00010855,2]
[333697919,1722369031741,-3863.72795769,0.00010884,2]
[333697921,1722369031751,-499.99,0.00010884,2]
[333697923,1722369031760,-3863.72795769,0.00010888,2]
[333697925,1722369031769,-1446.98,0.00010888,2]
[333697927,1722369031779,-3000.0,0.0001089,2]
[333697929,1722369031788,-1000.0,0.000109,2]
[333697931,1722369031797,-804.4465,0.000109,2]
[333697933,1722369031807,-1709.9529,0.000109,2]
[333697935,1722369031818,-177.13138484,0.000109,2]
[333697937,1722369031828,-1497.4301,0.000109,2]
[333697939,1722369031838,-1865.0,0.000109,2]
[333697940,1722369031847,-2198.58099268,0.000109,2]
[333697942,1722369031856,-1500.0,0.00010959,5]
[333697944,1722369031865,-11487.81209435,0.00010998,2]
[333697946,1722369031889,-1097.95023685,0.00010998,2]
[333697947,1722369031898,-538.8163928,0.00010998,2]
[333697948,1722369031908,-544.8640865,0.00010998,2]
[333697949,1722369031917,-462.2685901,0.00010998,2]
[333697950,1722369031940,-2818.399724,0.00010998,2]
[333698002,1722369037674,-1311.00864872,0.00010228,2]
[333698004,1722369037683,-469.07721318,0.00010998,2]
[333698006,1722369037733,-373.91367724,0.00010998,2]
[333698007,1722369037943,-568.94985213,0.000109,2]
[333698008,1722369037955,-453.30570109,0.000109,2]
[333698172,1722369039728,-1444.57749402,0.000109,2]
[333698174,1722369039738,-3102.17805038,0.00010998,2]
[333698175,1722369039747,-445.0,0.00010999,2]
[333698177,1722369039757,-150.0,0.00010999,2]
[333698179,1722369039766,-2815.531,0.00010999,2]
[333698181,1722369039775,-150.0,0.00010999,2]
[333698183,1722369039784,-907.904,0.00010999,2]
[333698185,1722369039793,-150.0,0.00010999,2]
[333698187,1722369039803,-7951.6592056,0.00011,2]
[333698189,1722369039814,-1128.10767436,0.00011,2]
[333698191,1722369039826,-254.25,0.00011,2]
[333698194,1722369039838,-26343.8425659,0.00011,2]
[333698196,1722369039847,-12869.00967144,0.00011,2]
[333698198,1722369039862,-1603.97968,0.00011,2]
[333698202,1722369039891,-664249.01623581,0.00011,2]
[333698219,1722369040051,-19258.45448065,0.00011,2]
[333698225,1722369040107,-46179.85034441,0.00011,2]
[333698327,1722369042738,-735.84618587,0.00011,2]
[333698328,1722369042749,-24935.22661887,0.00011,2]
[333698330,1722369042795,-1642.34070003,0.00011,2]
[333698333,1722369042901,-1625.7938459,0.00011,2]
[333698346,1722369043372,-9022.73171167,0.00011,2]
[333698347,1722369043388,-632.52348141,0.00011,2]
[333698348,1722369043403,-296.18044634,0.00011,2]
[333698350,1722369043414,-494.33920324,0.00011,2]
[333698590,1722369045919,-1064.7,0.00011,2]
[333698591,1722369046028,-2733.97298494,0.00011,2]
[333698592,1722369046039,-1450.0,0.00011,2]
[333698593,1722369046136,-1741.15,0.00011,2]
[333698594,1722369046192,-302.44287258,0.00011,2]
[333698595,1722369046204,-7000.0,0.00011,2]
[333698596,1722369146084,160.0,0.00031795,30]
[333698597,1722369189275,158.28,0.0001337,30]
[333698598,1722369422854,418.02,8.602e-05,2]
[333698599,1722369452913,250.0,8.602e-05,2]
[333698618,1722369748031,158.28,0.0001337,30]
[333698619,1722369959199,397.11,8.386e-05,2]
[333698620,1722370046894,160.0,0.00031811,30]
[333698621,1722370051150,7450.46,0.00031811,30]
[333698629,1722370219490,158.28,0.0001337,30]
[333698641,1722370231921,-518.7721,9.9e-05,2]
[333698642,1722370231931,-385.0,9.999e-05,2]
[333698643,1722370231945,-301.71406,0.0001,2]
[333698644,1722370231957,-269.0000005,0.0001,2]
[333698645,1722370231969,-551.29288503,0.0001,2]
[333698646,1722370231980,-127.99305447,0.0001,2]
[333698647,1722370231990,-187.30402499,0.00010136,2]
[333698648,1722370232002,-12.69597501,0.00010136,2]
[333698649,1722370232011,-283.9760812,0.00010256,2]
[333698650,1722370232023,-16.0239188,0.00010256,2]
[333698651,1722370232032,-6294.94398891,0.00010257,2]
[333698652,1722370232043,-17595.05601109,0.00010257,2]
[333698653,1722370232054,-250.0,0.000103,2]
[333698654,1722370232067,-800.0,0.00010419,2]
[333698655,1722370232076,-947.63704702,0.00010426,2]
[333698656,1722370232086,-4797.62,0.0001049,2]
[333698657,1722370232096,-397.11,0.0001065,2]
[333698658,1722370232107,-249.146,0.00010737,2]
[333698659,1722370232116,-4940.10000012,0.00010868,2]
[333698660,1722370232126,-4940.10000012,0.00010868,2]
[333698661,1722370232135,-499.99,0.00010868,2]
[333698662,1722370232144,-4940.10000012,0.00010887,2]
[333698663,1722370232153,-3000.0,0.0001089,2]
[333698664,1722370232163,-1000.0,0.000109,2]
[333698665,1722370232172,-2364.5869,0.000109,2]
[333698666,1722370232182,-893.2677,0.000109,2]
[333698667,1722370232194,-1000.0,0.000109,2]
[333698668,1722370232204,-174.95524457,0.000109,2]
[333698669,1722370232213,-2500.0,0.000109,2]
[333698670,1722370232223,-4111.38841208,0.000109,2]
[333698671,1722370232232,-21498.9006579,0.00010994,2]
[333698672,1722370232242,-14138.6523659,0.00010994,2]
[333698673,1722370232251,-920.4019429,0.00010994,2]
[333698674,1722370232260,-150.0,0.00010999,2]
[333698675,1722370232270,-160.0,0.00010999,2]
[333698676,1722370232279,-517.0,0.00011,2]
[333698677,1722370232288,-734392.76302489,0.00011,2]
[333698678,1722370232312,-1231.85132041,0.00011,2]
[333698679,1722370232322,-311.84172578,0.00011,2]
[333698680,1722370232333,-833.36001832,0.00011,2]
[333698681,1722370232345,-537.12016184,0.00011,2]
[333698682,1722370232734,-3360.830244,0.00011,2]
[333698683,1722370232766,-2852.80510775,0.00011,2]
[333698684,1722370232778,-582.92504737,0.00011,2]
[333698685,1722370232873,-3440.07294455,0.00011,2]
[333698686,1722370232885,-2039.97,0.00011,2]
[333698687,1722370232896,-415.09721781,0.00011,2]
[333698688,1722370232908,-308.807424,0.00011,2]
[333698689,1722370232926,-719.56763967,0.00011,2]
[333698690,1722370232940,-2323.0117673,0.00011,2]
[333698697,1722370238285,-658.658,0.000109,2]
[333698698,1722370238395,-34.7892,0.000109,2]
[333698699,1722370238405,-3248.5108,0.00011,2]
[333698700,1722370238416,-1479.70572838,0.00011,2]
[333698701,1722370238452,-651.2,0.00011,2]
[333698702,1722370238464,-1908.71029907,0.00011,2]
[333698703,1722370238475,-22140.40455578,0.00011,2]
[333698704,1722370238486,-345.0,0.00011,2]
[333698705,1722370238504,-44714.20588241,0.00011,2]
[333698706,1722370238513,-1438389.72312609,0.00011,2]
[333698707,1722370238612,-1499.73702298,0.00011,2]
[333698708,1722370238624,-664.1134747,0.00011,2]
[333698709,1722370238635,-2002.90125008,0.00011,2]
[333698710,1722370238664,-263.715,0.00011,2]
[333698712,1722370238721,-1088.50015,0.00011,2]
[333698750,1722370240358,-5632537.26037716,0.00011,2]
[333698751,1722370240411,-222618.69988227,0.00011,2]
[333698752,1722370240467,-28223.61302745,0.00011,2]
[333698758,1722370240896,150.8736,8.302e-05,2]
[333698803,1722370242971,-604.2395,0.000109,2]
[333698804,1722370242981,-2026.598056,0.00011,2]
[333698805,1722370243022,-10816.61358908,0.00011,2]
[333698806,1722370243033,-1259.08602691,0.00011,2]
[333698807,1722370243044,-1783.2,0.00011,2]
[333698808,1722370243129,-2746.17014355,0.00011,2]
[333698809,1722370243239,-32500.0000001,0.00011,2]
[333698810,1722370243294,-11746.69253416,0.00011,2]
[333698832,1722370245991,-810.8,0.00011,2]
[333698833,1722370246099,-262.97471205,0.00011,2]
[333698834,1722370246156,-632.3496519,0.00011,2]
[333698835,1722370246167,-1591.90161773,0.00011,2]
[333698836,1722370246179,-933.17494973,0.00011,2]
[333698837,1722370246190,-1678.56170612,0.00011,2]
[333698838,1722370246323,-654.26038696,0.00011,2]
[333698839,1722370246335,-323.60861225,0.00011,2]
[333699125,1722370432621,418.6,8.358e-05,2]
[333699126,1722370453236,353.2158177,0.00031812,50]
[333699127,1722370651409,285758.0,0.00031812,30]
[333699128,1722370722257,158.28,0.0001337,30]
[333699129,1722370803191,151.81,0.00020505,120]
[333699130,1722370888908,397.67,8.219e-05,2]
[333699131,1722370944384,5761.37194595,8.219e-05,2]
[333699132,1722370944408,8218.17933253,8.219e-05,2]
[333699133,1722370945928,160.0,0.00031739,30]
[333699136,1722371157795,1781.82066747,6.94e-05,2]
[333699137,1722371157818,1036.57905653,6.94e-05,2]
[333699139,1722371209524,530.44566551,8.412e-05,2]
[333699245,1722371253535,389.95367833,8.412e-05,2]
[333699248,1722371301777,158.28,0.0001337,30]
[333699270,1722371432816,-3600.0,9.5e-05,2]
[333699271,1722371432826,-250.0,9.957e-05,2]
[333699272,1722371432836,-1000.0,9.987e-05,2]
[333699273,1722371432845,-3238.01439827,9.993e-05,2]
[333699274,1722371432856,-1005.850446,9.993e-05,2]
[333699275,1722371432867,-786.87675746,9.993e-05,2]
[333699276,1722371432878,-1246.88773,9.993e-05,2]
[333699277,1722371432901,-17612.37066827,9.993e-05,2]
[333699278,1722371432910,-5000.0,0.0001,3]
[333699279,1722371432919,-5000.0,0.0001,3]
[333699280,1722371432929,-340.72125042,0.00010196,2]
[333699281,1722371432938,-2070.0,0.00010449,2]
[333699282,1722371432947,-397.67,0.00010474,2]
[333699283,1722371432958,-499.99,0.00010774,2]
[333699284,1722371432968,-3355.55,0.00010774,2]
[333699285,1722371432977,-4863.8539,0.000108,2]
[333699286,1722371432986,-30506.5539,0.000108,2]
[333699287,1722371432995,-221.16,0.000108,2]
[333699288,1722371433004,-342.30467006,0.00010849,2]
[333699289,1722371433013,-342.30467006,0.00010854,2]
[333699290,1722371433022,-32753.0874414,0.00010859,2]
[333699291,1722371433032,-32753.0874414,0.00010874,2]
[333699292,1722371433041,-14613.34422081,0.00010874,2]
[333699293,1722371433052,-18139.74322059,0.00010874,2]
[333699294,1722371433062,-342.30467006,0.00010874,2]
[333699295,1722371433071,-40289.20245327,0.0001088,2]
[333699296,1722371433082,-299585.42306128,0.0001088,2]
[333699297,1722371433091,-3000.0,0.0001089,2]
[333699298,1722371433100,-2423.29280345,0.00010899,2]
[333699299,1722371433110,-2423.29280344,0.00010899,2]
[333699300,1722371433119,-2423.29280344,0.00010899,2]
[333699301,1722371433128,-2423.29280344,0.00010899,2]
[333699302,1722371433138,-2423.29280344,0.00010899,2]
[333699303,1722371433147,-2423.29280344,0.00010899,2]
[333699304,1722371433157,-2423.29280344,0.00010899,2]
[333699305,1722371433166,-2423.29280344,0.00010899,2]
[333699306,1722371433176,-2423.29280344,0.00010899,2]
[333699307,1722371433185,-163.48843547,0.00010899,2]
[333699308,1722371433195,-12133.0553,0.000109,2]
[333699309,1722371433206,-321.44547856,0.000109,2]
[333699310,1722371433215,-348.7569,0.000109,2]
[333699312,1722371433225,-1000.0,0.000109,2]
[333699313,1722371433235,-1559.971896,0.000109,2]
[333699314,1722371433245,-10000.0,0.000109,2]
[333699315,1722371433255,-1345.4023,0.000109,2]
[333699316,1722371433264,-170.5948962,0.000109,2]
[333699317,1722371433274,-2423.29280344,0.000109,2]
[333699318,1722371433282,-600.0,0.000109,2]
[333699319,1722371433292,-600.0,0.000109,2]
[333699320,1722371433301,-600.0,0.000109,2]
[333699321,1722371433310,-600.0,0.000109,2]
[333699322,1722371433319,-600.0,0.000109,2]
[333699323,1722371433328,-600.0,0.000109,2]
[333699324,1722371433337,-600.0,0.000109,2]
[333699325,1722371433346,-600.0,0.000109,2]
[333699326,1722371433355,-293.64006704,0.000109,2]
[333699327,1722371433364,-253.432325,0.000109,2]
[333699328,1722371433373,-932.24290067,0.000109,2]
[333699329,1722371433382,-150.2,0.000109,2]
[333699330,1722371433392,-2309.14725719,0.000109,2]
[333699331,1722371433401,-150.2,0.0001099,2]
[333699332,1722371433410,-150.2,0.0001099,2]
[333699333,1722371433420,-150.2,0.0001099,2]
[333699334,1722371433437,-150.2,0.0001099,2]
[333699335,1722371433447,-150.2,0.0001099,2]
[333699336,1722371433459,-150.2,0.0001099,2]
[333699337,1722371433470,-150.2,0.0001099,2]
[333699338,1722371433479,-150.2,0.0001099,2]
[333699339,1722371433489,-150.2,0.0001099,2]
[333699340,1722371433498,-150.2,0.0001099,2]
[333699341,1722371433510,-150.2,0.0001099,2]
[333699342,1722371433519,-150.2,0.0001099,2]
[333699343,1722371433529,-150.2,0.0001099,2]
[333699344,1722371433538,-150.2,0.0001099,2]
[333699345,1722371433547,-150.2,0.0001099,2]
[333699346,1722371433556,-150.2,0.0001099,2]
[333699347,1722371433566,-150.2,0.0001099,2]
[333699348,1722371433575,-150.2,0.0001099,2]
[333699349,1722371433585,-150.2,0.0001099,2]
[333699350,1722371433594,-150.2,0.0001099,2]
[333699351,1722371433604,-150.2,0.0001099,2]
[333699352,1722371433773,-150.2,0.0001099,2]
[333699353,1722371433783,-150.2,0.0001099,2]
[333699354,1722371433793,-6088.9303897,0.00010995,2]
[333699355,1722371433802,-600.8168332,0.00010995,2]
[333699356,1722371433811,-14033.9788623,0.00010995,2]
[333699357,1722371433821,-1216.37287104,0.00010997,2]
[333699358,1722371433830,-3420.475,0.00010999,2]
[333699359,1722371433839,-1504.47847447,0.00010999,2]
[333699360,1722371433848,-877480.55524474,0.00011,2]
[333699361,1722371433872,-2367.38584379,0.00011,2]
[333699362,1722371433883,-1133.472332,0.00011,2]
[333699363,1722371433898,-841.88482517,0.00011,2]
[333699364,1722371433909,-718.42740746,0.00011,2]
[333699365,1722371433932,-1004.42892586,0.00011,2]
[333699369,1722371438050,-6510.64424723,0.00011,2]
[333699370,1722371438061,-20237.78825125,0.00011,2]
[333699371,1722371438164,-1954.87549614,0.00011,2]
[333699372,1722371438175,-594.3797701,0.00011,2]
[333699549,1722371440247,-2926.02997627,0.00011,2]
[333699561,1722371440361,-661.83443996,0.00011,2]
[333699567,1722371440420,-313.1544,0.00011,2]
[333699570,1722371440434,-1326.93082764,0.00011,2]
[333699572,1722371440446,-387.0611503,0.00011,2]
[333699681,1722371443123,-448.95942964,0.00011,2]
[333699682,1722371443162,-833.87987711,0.00011,2]
[333699683,1722371443222,-694.5375725,0.00011,2]
[333699684,1722371443233,-4616.80177371,0.00011,2]
[333699685,1722371443244,-3939.92439593,0.00011,2]
[333699686,1722371443255,-935.898057,0.00011,2]
[333699687,1722371443266,-1464.06406546,0.00011,2]
[333699688,1722371443276,-6243.43439683,0.00011,2]
[333699689,1722371443288,-1723.80973372,0.00011,2]
[333699690,1722371443299,-1323.48,0.00011,2]
[333699691,1722371443344,-15811.51478153,0.00011,2]
[333699692,1722371443355,-1318.27107175,0.00011,2]
[333699693,1722371443367,-688.21289458,0.00011,2]
[333699694,1722371443376,-557.07189428,0.00011,2]
[333699695,1722371443387,-419.13536791,0.00011,2]
[333699696,1722371443398,-1279.97005618,0.00011,2]
[333699697,1722371443413,-374.72962927,0.00011,2]
[333699699,1722371443469,-1364.2199562,0.00011,2]
[333699832,1722371446164,-2784.40376051,0.00011,2]
[333699833,1722371446343,-453.99349827,0.000109,2]
[333699834,1722371446353,-9659.00650173,0.00011,2]
[333699835,1722371446364,-4064.58139509,0.00011,2]
[333699836,1722371446375,-1656.37559787,0.00011,2]
[333699837,1722371446387,-3737.94016708,0.00011,2]
[333699838,1722371446448,-810.7547,0.00011,2]
[333699850,1722371476202,416.63,8.641e-05,2]
[333699852,1722371564361,1450.89692328,8.641e-05,2]
[333699853,1722371577225,949.4662692,8.641e-05,2]
[333699854,1722371774950,1267.7837183,8.641e-05,2]
[333699855,1722371775969,158.28,0.0001337,30]
[333699856,1722371794235,3958.24468885,8.641e-05,2]
[333699857,1722371794259,10000.0,8.641e-05,2]
[333699858,1722371794281,6414.57224561,8.641e-05,2]
[333699859,1722371795286,2799.66328063,8.641e-05,2]
[333699860,1722371795336,785.76447376,8.641e-05,2]
[333699861,1722371795358,4861.46339958,8.641e-05,2]
[333699862,1722371797056,250.0,8.641e-05,2]
[333699863,1722371845357,160.0,0.00031739,30]
[333699864,1722371960110,432.22,8.219e-05,2]
[333699865,1722371989971,1267.7837183,8.219e-05,2]
[333699867,1722372066635,50000.0,0.00031767,30]
[333699868,1722372072072,50000.0,0.00031767,31]
[333699869,1722372076445,50000.0,0.00031767,32]
[333699870,1722372080521,50000.0,0.00031767,33]
[333699871,1722372083808,50000.0,0.00031767,34]
[333699872,1722372092479,1267.7837183,8.219e-05,2]
[333699873,1722372161558,50000.0,0.00031767,30]
[333699874,1722372165561,50000.0,0.00031767,31]
[333699875,1722372169450,50000.0,0.00031767,32]
[333699876,1722372187142,50000.0,0.00031767,33]
[333699877,1722372202473,576.70775668,8.219e-05,2]
[333699878,1722372264835,50000.0,0.00031767,34]
[333699879,1722372275579,817.47191027,0.00031767,30]
[333699880,1722372280130,158.28,0.0001337,30]
[333699885,1722372433081,410.6,8.219e-05,2]
[333699906,1722372632692,-256.59,9.16e-05,2]
[333699907,1722372632701,-1283.25,9.165e-05,2]
[333699908,1722372632722,-332.163,9.165e-05,2]
[333699917,1722372638338,-664.7658,9.165e-05,2]
[333699918,1722372638506,-17300.3452965,9.165e-05,2]
[333699919,1722372638518,-3126.48485974,9.165e-05,2]
[333699920,1722372638561,-435.35854429,9.165e-05,2]
[333699921,1722372638572,-300.57005684,9.165e-05,2]
[333699922,1722372638620,-457.06244263,9.165e-05,2]
[333699923,1722372638629,-200.0,9.169e-05,2]
[333699924,1722372638639,-200.0,9.18e-05,2]
[333699925,1722372638648,-250.0,9.573e-05,2]
[333699926,1722372638657,-181.34243174,9.573e-05,2]
[333699927,1722372638666,-155.59,9.577e-05,2]
[333699928,1722372638675,-155.59,9.58e-05,2]
[333699929,1722372638685,-155.59,9.583e-05,2]
[333699930,1722372638694,-2000.0,9.584e-05,2]
[333699931,1722372638704,-155.59,9.586e-05,2]
[333699932,1722372638713,-155.59,9.589e-05,2]
[333699933,1722372638723,-155.59,9.592e-05,2]
[333699934,1722372638734,-155.59,9.594e-05,2]
[333699935,1722372638743,-155.59,9.597e-05,2]
[333699936,1722372638752,-155.59,9.6e-05,2]
[333699937,1722372638762,-155.59,9.603e-05,2]
[333699938,1722372638771,-155.59,9.606e-05,2]
[333699939,1722372638780,-155.59,9.608e-05,2]
[333699940,1722372638790,-155.59,9.611e-05,2]
[333699941,1722372638799,-155.59,9.614e-05,2]
[333699942,1722372638813,-155.59,9.617e-05,2]
[333699943,1722372638822,-155.59,9.62e-05,2]
[333699944,1722372638831,-155.59,9.623e-05,2]
[333699945,1722372638840,-155.59,9.625e-05,2]
[333699946,1722372638850,-620.76,9.67e-05,2]
[333699947,1722372638860,-1834.4,9.67e-05,2]
[333699948,1722372638870,-150.0,9.67e-05,2]
[333699949,1722372638879,-800.0,9.684e-05,2]
[333699950,1722372638892,-150.0,9.781e-05,2]
[333699951,1722372638902,-1924.45221331,9.799e-05,2]
[333699952,1722372638911,-15585.4888,9.8e-05,2]
[333699953,1722372638921,-400.0,9.9e-05,3]
[333699954,1722372638931,-1250.0,0.0001,2]
[333699955,1722372638940,-1011.29694455,0.0001,2]
[333699956,1722372638951,-900.0,0.0001,3]
[333699957,1722372638961,-1400.0,0.000101,3]
[333699958,1722372638970,-188.85,0.00010122,2]
[333699959,1722372638980,-1900.0,0.000102,3]
[333699960,1722372638989,-1666.77,0.000103,2]
[333699961,1722372638999,-499.99,0.000103,2]
[333699962,1722372639010,-2300.0,0.000103,3]
[333699963,1722372639019,-200.0,0.00010315,2]
[333699964,1722372639029,-400.0,0.000104,3]
[333699965,1722372639040,-410.6,0.00010432,2]
[333699966,1722372639049,-212.06657119,0.00010474,2]
[333699967,1722372639058,-400.0,0.000105,3]
[333699968,1722372639068,-400.0,0.000106,3]
[333699969,1722372639077,-150.0,0.00010637,2]